Cogmind - Beta 17 @@@ ROGUE MODE // 2026.08.09 @ 21:18:28 Player: Marc Result: Self-destructed Performance ------------- Evolutions (2) 1000 Regions Visited (3) 600 Robots Destroyed (15) 75 Value Destroyed (312) 312 Prototype IDs (1) 20 Alien Tech Used (0) 0 Bonus (0) 0 TOTAL SCORE: 2007 Bonus ------- None Cogmind --------- Core Integrity 380/550 Matter 18/300 Energy 100/100 System Corruption 0% Temperature Cool (9) Movement Core (50) Location -8/Materials Parts ------- > --- POWER (1) -------- (None) > --- PROPULSION (3) --- (None) > --- UTILITY (5) ------ Weight Redist. System Visual Processing Unit Hacking Suite High-powered Tractor Beam > --- WEAPON (2) ------- (None) > --- INVENTORY (5) ---- Visual Processing Unit Improved Sensor Array Seismic Detector Melee Analysis Suite Plasma Cutter Peak State ------------ > --- POWER ------------ Light Nuclear Core > --- PROPULSION ------- Aluminum Leg Aluminum Leg > --- UTILITY ---------- Improved Heat Sink Visual Processing Unit > --- WEAPON ----------- Particle Cannon Particle Cannon > --- INVENTORY -------- Ion Engine Heat Sink Particle Cannon [Rating: 14] Favorites ----------- Power Ion Engine Engine Ion Engine Power Core Light Nuclear Core Propulsion Aluminum Leg Leg Aluminum Leg Wheel Compact Wheel Hover Unit Hover Unit Flight Unit Flight Unit Utility Visual Processing Unit Device Weight Redist. System Processor Visual Processing Unit Hackware Hacking Suite Weapon Particle Cannon Energy Gun Small Laser Energy Cannon Particle Cannon Ballistic Gun Assault Rifle Build | -11 -10 -9 -8 ------- Run | Yrd Mat Mat Mat Slots Evolved 4 | . . 2 2 Power . | . . . . Propulsion 1 | . . . 1 Utility 3 | . . 2 1 Weapon . | . . . . Parts Attached 29 | 7 18 2 2 Power 3 | 1 2 . . Engine 2 | 1 1 . . Core 1 | . 1 . . Reactor . | . . . . Propulsion 10 | 4 6 . . Treads . | . . . . Leg 3 | 2 1 . . Wheel 2 | 2 . . . Hover 2 | . 2 . . Flight 3 | . 3 . . Utility 10 | . 7 1 2 Device 7 | . 6 . 1 Storage . | . . . . Processor 2 | . 1 1 . Hackware 1 | . . . 1 Protection . | . . . . Artifact . | . . . . Weapon 6 | 2 3 1 . Energy Gun 1 | 1 . . . Energy Cannon 3 | . 3 . . Ballistic Gun 2 | 1 . 1 . Ballistic Cannon . | . . . . Launcher . | . . . . Special Weapon . | . . . . Impact Weapon . | . . . . Slashing Weapon . | . . . . Piercing Weapon . | . . . . Special Melee Weapon . | . . . . Unidentified Prototypes 1 | . . 1 . Parts Lost 4 | . . 3 1 Power 1 | . . 1 . Propulsion 3 | . . 2 1 Utility . | . . . . Weapon . | . . . . Highest Loss Streak 3 | . . 3 1 To Critical Strikes . | . . . . Average Backups 3 | . 2 4 4 Power . | . . . . Propulsion . | . . 1 . Utility 1 | . . 1 3 Weapon . | . 1 . . Tool/Special . | . . . . Unused Backups 8 | . 4 . 4 Power . | . . . . Propulsion . | . . . . Utility 3 | . . . 3 Weapon 4 | . 4 . . Tool/Special 1 | . . . 1 Average Slot Usage (%) 73 | . 92 55 34 Engine 6 | . 7 8 . Core 3 | . 6 . . Leg 14 | . 23 . . Hover 2 | . 1 2 6 Flight 4 | . 2 17 . Device 18 | . 20 15 16 Processor 6 | . 4 8 9 Energy Cannon 14 | . 23 2 . Peak Build Rating 14 | 5 14 13 11 Average Rating 9 | 3 10 7 8 On Entrance 4 | . 5 8 5 Avg Prop Armor Cover (%) . | . . . . Naked Turns . | . . . . Heaviest Build 15 | 8 15 11 1 Greatest Support 26 | 26 20 14 12 Greatest Overweight (x) 3 | 1 3 . . Average Overweight (x) . | . . . . Largest Inventory Capacity 5 | 5 5 5 5 Average Capacity 5 | 5 5 5 5 Most Carried 5 | 4 5 5 5 Average Carried 3 | 1 2 4 4 Final Capacity 5 | 5 5 5 5 Final Carried 5 | . 2 4 5 Class Distribution -------------------- 82% | Mutant 17% | Scavenger-Mutant Dominant Class ---------------- Mutant | -10/Materials Mutant | -9/Materials Mutant | -8/Materials Resources | -11 -10 -9 -8 ----------- Run | Yrd Mat Mat Mat Matter Collected 342 | 140 185 . 17 Remotely . | . . . . Salvage Created 406 | . 406 . . Parts 29 | . 29 . . Haulers Intercepted . | . . . . Recyclers Shooed . | . . . . Parts Field Recycled . | . . . . Retrieved Matter . | . . . . Parts Self-Destructed . | . . . . Prevented . | . . . . Parts Restored . | . . . . Kills | -11 -10 -9 -8 ------- Run | Yrd Mat Mat Mat Combat Hostiles Destroyed 11 | . 11 . . Cannons 11 | . 11 . . Classes Destroyed 4 | . 4 . . Worker 1 | . 1 . . Watcher 3 | . 3 . . Swarmer 6 | . 6 . . Grunt 5 | . 5 . . Best Kill Streak 6 | . 6 . . Combat Bots Only 5 | . 5 . . Max Kills in Single Turn 2 | . 2 . . Gunslinging . | . . . . Exploded . | . . . . Melee . | . . . . Uniques/NPCs Destroyed . | . . . . Combat | -11 -10 -9 -8 -------- Run | Yrd Mat Mat Mat Hostile Shots Fired 105 | . 63 21 21 Missed 31 | . 13 9 9 Hits 74 | . 50 12 12 Melee 2 | . . . 2 Projectile 72 | . 50 12 10 Damage Taken 856 | . 511 151 194 Core 372 | . 153 49 170 Absorbed by Shields . | . . . . Regen/Repaired (Parts) 16 | . . 16 . Core Remaining (%) 75 | 100 38 87 . Volleys Fired 32 | . 30 2 . Largest 2 | . 2 1 . Hottest 136 | . 136 68 . Shots Fired 62 | . 60 2 . Gun . | . . . . Cannon 62 | . 60 2 . Launcher . | . . . . Special . | . . . . Kinetic . | . . . . Thermal 62 | . 60 2 . Explosive . | . . . . Electromagnetic . | . . . . Robot Hit Streak 4 | . 4 2 . Robot Miss Streak 4 | . 4 1 . Penetration Max . | . . . . Secondary Targets . | . . . . Shots Hit Robots 28 | . 27 1 . Core Hits 17 | . 16 . 1 Critical Kills . | . . . . Critical Parts Destroyed . | . . . . Critical Strikes . | . . . . Melee Attacks . | . . . . Impact . | . . . . Slashing . | . . . . Piercing . | . . . . Sneak Attacks . | . . . . Combat Hostiles . | . . . . Follow-up Attacks . | . . . . Damage Inflicted 633 | . 610 20 3 Guns . | . . . . Cannons 630 | . 610 20 . Explosions . | . . . . Melee . | . . . . Ramming 3 | . . . 3 Kinetic . | . . . . Thermal 630 | . 610 20 . Explosive . | . . . . Electromagnetic . | . . . . Impact . | . . . . Slashing . | . . . . Piercing . | . . . . Highest Corruption . | . . . . Average Corruption . | . . . . Corruption Purged . | . . . . Corruption Blocked . | . . . . Overload Shots . | . . . . Overflow Damage 13 | . 13 . . Projectiles 13 | . 13 . . Explosions . | . . . . Melee . | . . . . Knockbacks . | . . . . Impact . | . . . . Kinetic . | . . . . Secondary . | . . . . Self-Inflicted Damage 1 | . . . 1 Shots . | . . . . Rammed 1 | . . . 1 Targets Rammed 1 | . . . 1 Kicked . | . . . . Crushed . | . . . . Highest Temperature 652 | . 652 56 . Average Temperature 175 | . 181 30 . Received Heat Transfer 231 | . 117 60 54 Effects 26 | . 26 . . Shutdowns 1 | . 1 . . Energy Bleed 1 | . 1 . . Matter Decay 4 | . 4 . . Short Circuit 3 | . 3 . . Damage (minor) 2 | . 2 . . Damage (major) 14 | . 14 . . Damage (core) 1 | . 1 . . Siege Activations . | . . . . Martial Activations . | . . . . Shielding Activations . | . . . . Robots Disrupted . | . . . . Combat Hostiles . | . . . . Robots Corrupted . | . . . . Combat Hostiles . | . . . . Parts Fried . | . . . . Impact Corruptions . | . . . . Robots Melted . | . . . . Combat Hostiles . | . . . . Parts Melted 1 | . 1 . . Heat Transferred 1147 | . 1110 37 . Parts Sabotaged . | . . . . Parts Stolen . | . . . . Parts Stripped . | . . . . Power Chain Reactions . | . . . . Alert | -11 -10 -9 -8 ------- Run | Yrd Mat Mat Mat Maximum Alert Level 1 | . 1 . . Low Security (%) 93 | 100 88 100 100 Level 1 6 | . 11 . . Level 2 . | . . . . Level 3 . | . . . . Level 4 . | . . . . Level 5 . | . . . . High Security . | . . . . Max Security . | . . . . Peak Influence 223 | . 223 74 30 Initial 74 | . . 74 5 Average 57 | . 82 43 10 Influence Increases 416 | . 323 18 75 Destroy 0b10 Robot/C 220 | . 220 . . Destroy 0b10 Robot/NC 20 | . 20 . . Destroy Leader 46 | . 46 . . Successful Hack 8 | . 5 3 . Disable Machine 30 | . 30 . . Destroy Structure 2 | . 2 . . Partial Spotted 15 | . . . 15 Lose Combat Pursuer 75 | . . 15 60 Influence Decreases 386 | . 146 180 60 Entered New Map 113 | . . 103 10 Time Decay 236 | . 146 50 40 Lost Part 37 | . . 27 10 Squads Dispatched 5 | . 2 2 1 Investigation 1 | . 1 . . Extermination . | . . . . Reinforcement 4 | . 1 2 1 Assault . | . . . . Garrison . | . . . . Intercept . | . . . . Searches Triggered . | . . . . Construction Impeded . | . . . . Haulers Reinforced . | . . . . Active Scanning Responses . | . . . . Cargo Convoy Interrupts . | . . . . Stealth | -11 -10 -9 -8 --------- Run | Yrd Mat Mat Mat Distress Signals 2 | . . 1 1 Communications Jammed . | . . . . Distress Signals . | . . . . Times Spotted 39 | . 16 9 14 Peak Tracking Total 11 | . 5 7 11 Tactical Retreats 3 | . . 1 2 Traps | -11 -10 -9 -8 ------- Run | Yrd Mat Mat Mat Traps Triggered 1 | . 1 . . Indirectly . | . . . . Trap Hack Attempts . | . . . . Triggered . | . . . . Disarmed . | . . . . Reprogrammed . | . . . . Reused . | . . . . Traps Extracted . | . . . . Installed . | . . . . Triggered . | . . . . Machines | -11 -10 -9 -8 ---------- Run | Yrd Mat Mat Mat Machines Disabled 2 | . 2 . . Max in Single Turn 1 | . 1 . . Machines Repaired . | . . . . Machines Dismantled . | . . . . Machines Sabotaged . | . . . . Overloaded Fab Kills . | . . . . Hacking | -11 -10 -9 -8 --------- Run | Yrd Mat Mat Mat Machines Accessed 4 | . 1 3 . Terminals 3 | . 1 2 . Fabricators . | . . . . Repair Stations 1 | . . 1 . Recycling Units . | . . . . Scanalyzers . | . . . . Garrison Access . | . . . . Total Hacks 10 | . 3 7 . Successful 5 | . 1 4 . Failed 4 | . 2 2 . Catastrophic . | . . . . Database Lockouts 1 | . . 1 . Manual . | . . . . Terminals 8 | . 3 5 . Fabricators . | . . . . Repair Stations 2 | . . 2 . Recycling Units . | . . . . Scanalyzers . | . . . . Garrison Access . | . . . . Terminal Hacks 3 | . 1 2 . Record 2 | . . 2 . Hauler Manifests 1 | . 1 . . Fabricator Hacks . | . . . . Repair Station Hacks 2 | . . 2 . Scan Component 1 | . . 1 . Repair 1 | . . 1 . Recycling Unit Hacks . | . . . . Scanalyzer . | . . . . Garrison Access Hacks . | . . . . Unauthorized Hacks . | . . . . Terminals . | . . . . Fabricators . | . . . . Repair Stations . | . . . . Recycling Units . | . . . . Scanalyzers . | . . . . Garrison Access . | . . . . Data Cores Recovered . | . . . . Used . | . . . . Hacking Detections 2 | . 1 1 . Full Trace Events . | . . . . Feedback Events . | . . . . Feedback Blocked . | . . . . Robot Schematics Acquired . | . . . . Robots Built . | . . . . Authchips . | . . . . Time . | . . . . Total Robot Build Rating . | . . . . Part Schematics Acquired . | . . . . Parts Built . | . . . . Authchips . | . . . . Time . | . . . . Total Part Build Rating . | . . . . Part Studies Acquired . | . . . . Parts Repaired 1 | . . 1 . Time 26 | . . 26 . Parts Recycled . | . . . . Recycled Matter . | . . . . Retrieved Matter . | . . . . Retrieved Components . | . . . . Parts Scanalyzed . | . . . . Part Schematics Acquired . | . . . . Parts Damaged . | . . . . Bothacking | -11 -10 -9 -8 ------------ Run | Yrd Mat Mat Mat Used RIF Installer . | . . . . Robots Hacked . | . . . . Non-combat . | . . . . Combat . | . . . . Robot Hacks Applied . | . . . . Relay Couplers Released . | . . . . Fabnet Peak Effective % . | . . . . Robots Rewired . | . . . . Allies Hacked . | . . . . Hacks Repelled . | . . . . Allies | -11 -10 -9 -8 -------- Run | Yrd Mat Mat Mat Total Allies . | . . . . Largest Group . | . . . . Highest-Rated Group . | . . . . Highest-Rated Ally . | . . . . Total Orders . | . . . . Ally Attacks . | . . . . Total Damage . | . . . . Kills . | . . . . Allies Corrupted . | . . . . Allies Melted . | . . . . Intel | -11 -10 -9 -8 ------- Run | Yrd Mat Mat Mat Active Infowar (turns) 429 | . 223 131 75 Optics 314 | . 132 107 75 Seismic 174 | . 119 55 . Robot Analysis Total . | . . . . Derelict Logs Recovered . | . . . . Drone Launches . | . . . . Drone Recoveries . | . . . . Exploration | -11 -10 -9 -8 ------------- Run | Yrd Mat Mat Mat Turns Passed 749 | 49 430 131 139 Spaces Moved 676 | 37 268 211 160 Core 71 | 15 1 1 54 Treads . | . . . . Legs 188 | 17 171 . . Wheels 5 | 5 . . . Hover 163 | . 17 40 106 Flight 249 | . 79 170 . Fastest Speed 37 | 50 37 37 50 Average Speed 68 | 90 93 41 56 Slowest Speed 200 | 120 200 60 60 Overloaded Moves . | . . . . Propulsion Burnouts . | . . . . Robots Hopped 1 | . . 1 . Potential Cave-ins . | . . . . Cave-ins Triggered . | . . . . Exploration Rate (%) 20 | 3 42 21 17 Regions Visited 3 Branch Regions . Pre-discovered Areas . | . . . . Known Exits Taken . | . . . . Unknown Exits Taken 3 | 1 1 1 . Scrap Searched . | . . . . Spaces Dug . | . . . . Terrain Destroyed . | . . . . Melee . | . . . . Projectile . | . . . . AOE . | . . . . Terrain Rammed . | . . . . Walls Destroyed . | . . . . Machines Disabled . | . . . . Actions | -11 -10 -9 -8 --------- Run | Yrd Mat Mat Mat Total 918 | 54 403 253 208 Wait 93 | . 26 26 41 Move 671 | 36 267 208 160 Hop 1 | . . 1 . Pick Up 39 | 7 22 7 3 Fast Attach 2 | . . 1 1 Attach 30 | 7 20 2 1 Detach 22 | 2 19 1 . Swap 1 | . 1 . . Drop 26 | 2 18 5 1 Fire 32 | . 30 2 . Melee . | . . . . Ram 1 | . . . 1 Kick . | . . . . Crush . | . . . . Escape Stasis . | . . . . Rewire . | . . . . Trap . | . . . . Miscellaneous . | . . . . Route ------- -11/Scrapyard -10/Materials -9/Materials -8/Materials History --------- Turn | Location | Event 6 | -11/Scrapyard | Discovered new exit (range 15) 50 | -11/Scrapyard | Entered Materials 388 | -10/Materials | Core integrity fell below 50% 463 | -10/Materials | Discovered new exit (range 15) 480 | -10/Materials | Entered another Materials area 480 | -9/Materials | Evolved 2 slots: Utility x2 523 | -9/Materials | Central database locked down 561 | -9/Materials | Repaired Seismic Detector 591 | -9/Materials | Discovered new exit (range 8) 611 | -9/Materials | Entered another Materials area 611 | -8/Materials | Evolved 2 slots: Propulsion x1, Utility x1 617 | -8/Materials | Lost 3 parts (1p2n) 671 | -8/Materials | Build established: Mutant 750 | -8/Materials | Self-destructed Last Messages --------------- 00591_ EXIT=FOUND PARAMETERS=PROPULSION+1,UTILITY+1 LOCATION=UNKNOWN GOAL=ESCAPE 00622_ Acquired Hpw. Tractor Beam. 00648_ Acquired Imp. Sensor Array. 00650_ Dropped Imp. Assault Rifle. 00652_ Acquired Melee Analysis Suite. 00657_ Penetrated by Slug. 00701_ Slammed into G-47 Trooper. 00701_ Hover Unit destroyed. 00702_ W-25 Informer sends out distress signal. 00710_ U-05 Engineer destroyed. 00711_ Acquired 17 matter. 00713_ U-05 Engineer works on Atomic Centrifuge. 00713_ Acquired Hacking Suite. 00718_ U-05 Engineer works on Atomic Centrifuge. 00718_ K-01 Serf collects debris. 00742_ ALERT: Hostiles spotted, dispatching reinforcements to Terminal M006. Map ----- +----------------------------------------------------+ | ??????????????????# # """ """ #????????????????? | | ??????????????????# # #????????????????? | | ??????????????????# + #????????????????? | | ??????????????????# # #????????????????? | | ??????????????????# # #????????????????? | | ??????????????????# # #????????????????? | | ??????????????????# ###########????????????????? | | ??????????????????# #??????????????????????????? | | ??????????????????# #??????????????????????????? | | ??????????????????# +??????????????????????????? | | ??????????????????# #??????????????????????????? | | ??????????????????# #??????????????????????????? | | ??????????????????# #??????????????????????????? | | ???????????????#####/####????????????????????????? | | ???????????????# = #????????????????????????? | | ???????????????#" #????????????????????????? | | ???????????????#T ] #????????????????????????? | | ???????????????#" "" #????????????????????????? | | ???????????????# ! #????????????????????????? | | ???????????????# #????????????????????????? | | ???????????????# !#?????????????????##?????? | | ???????????????# #??????????????? #?????? | | ?????#######+??# #????????????? #?????? | | ?????T ####+#####??????????? # ???? | | ????? g ############ /?????? | | ????????? """ rk gYl@ggg g + """ "????????? | | ????????? """ ############ """ "????????? | | ??????????""" #?????????????"" ????????? | | ???????? ########??????????????? ????????? | | ?????? ??????????????????????????????????? | | ?????? ???????????????????????????????????? | | ?????? ????????????????????????????????????? | | ?????? ?????????????????????????????????????? | | ???????? ??????????????????????????????????????? | | ???????? ???????????????????????????????????????? | | ?????????????????????????????????????????????????? | | ?????????????????????????????????????????????????? | | ?????????????????????????????????????????????????? | | ?????????????????????????????????????????????????? | | ?????????????????????????????????????????????????? | | ?????????????????????????????????????????????????? | | ?????????????????????????????????????????????????? | | ?????????????????????????????????????????????????? | | ?????????????????????????????????????????????????? | | ?????????????????????????????????????????????????? | | ?????????????????????????????????????????????????? | | ?????????????????????????????????????????????????? | | ?????????????????????????????????????????????????? | | ?????????????????????????????????????????????????? | | ?????????????????????????????????????????????????? | +----------------------------------------------------+ Best States ------------- Heat Dissipation 49 Coolant Potential 100 Energy Generation 14 Energy Capacity 250 Matter Stores 247 Matter Capacity 300 Sight Range 18 Terrain Scan Density 10 Additional Mass Support 6 Evasion (%) 62 Offensive Hacking 10 Item Schematics ----------------- None Robot Schematics ------------------ None Fabricated ------------ Nothing Repaired ---------- Seismic Detector | 20% | -9/Materials Studied --------- None Alien Tech Used ----------------- None Achievements -------------- None Challenges ------------ None Game ------ Seed SystemFortressBox Manual? 0 Play Time 00:21:24 Cumulative 9.6 hours Start 2026.08.09 @ 20:55:44 End 2026.08.09 @ 21:18:28 Sessions 1 Manual Loads 0 Difficulty Rogue Special Mode None Game No. 23 Rogue 16 Adventurer 7 Explorer 0 Win Type - Total 0 Types 0/0/0/0/0/0/0/0/0/0 Lore% 9 Gallery% 13 Achievement% 11 Wizard Run 0 Options --------- Layout 1 ASCII 0 Keyboard 0 Movement Mouse Keybinds 0 Fullscreen 1 Font 24/Smallcaps Map View 50x35 Zoom Use 0% Tactical HUD 1 Map Filters NONE Filters NONE Steam 1 RUN: e2388b44-04c4-4c40-b034-d819d294854e